fUSD/lending_fUSD_20250407
["ID","MTS","AMOUNT","RATE_DAILY","PERIOD"]
[357380499,1744027850956,-155.267109,0.000471,14]
[357380500,1744027850966,-151.0,0.00047193,14]
[357380501,1744027850976,-151.0,0.00047193,14]
[357380502,1744027850985,-151.0,0.00047193,14]
[357380503,1744027850994,-1969.531871,0.00047193,14]
[357380504,1744027851003,-1969.531871,0.00047193,14]
[357380505,1744027851013,-151.0,0.00047193,14]
[357380506,1744027851023,-1000.0,0.000472,7]
[357380507,1744027851033,-9583.08772509,0.00047358,15]
[357380508,1744027851042,-1000.0,0.000474,7]
[357380509,1744027851052,-1000.0,0.00047452,10]
[357380510,1744027851061,-150.73,0.000475,2]
[357380511,1744027851071,-19040.59337985,0.000475,120]
[357380512,1744027851080,-250.0,0.000475,120]
[357380513,1744027851090,-3629.89612008,0.00047542,30]
[357380514,1744027851100,-166.67,0.00047729,2]
[357380515,1744027851109,-1000.0,0.000478,7]
[357380516,1744027851119,-1000.0,0.00047816,120]
[357380517,1744027851129,-488.27271557,0.00047945,30]
[357380518,1744027851139,-151.0,0.0004797,14]
[357380519,1744027851150,-151.0,0.0004797,14]
[357380520,1744027851159,-486.289909,0.0004797,14]
[357380521,1744027851168,-486.289909,0.0004797,14]
[357380522,1744027851178,-151.0,0.0004797,14]
[357380523,1744027851187,-213.0,0.00047973,120]
[357380524,1744027851197,-151.0,0.0004798,30]
[357380525,1744027851206,-151.0,0.0004798,30]
[357380526,1744027851216,-151.0,0.0004798,30]
[357380527,1744027851225,-151.0,0.0004798,30]
[357380528,1744027851234,-151.0,0.0004798,30]
[357380529,1744027851244,-151.0,0.0004798,30]
[357380530,1744027851253,-151.0,0.0004798,30]
[357380531,1744027851262,-151.0,0.0004798,30]
[357380532,1744027851271,-151.0,0.0004798,30]
[357380533,1744027851281,-151.0,0.0004798,30]
[357380534,1744027851291,-151.0,0.0004798,30]
[357380535,1744027851301,-151.0,0.0004798,30]
[357380536,1744027851314,-151.0,0.0004798,30]
[357380537,1744027851324,-151.0,0.0004798,30]
[357380538,1744027851334,-151.0,0.0004798,30]
[357380539,1744027851344,-151.0,0.0004798,30]
[357380540,1744027851354,-151.0,0.0004798,30]
[357380541,1744027851364,-151.0,0.0004798,30]
[357380542,1744027851373,-151.0,0.0004798,30]
[357380543,1744027851382,-151.0,0.0004798,30]
[357380544,1744027851393,-151.0,0.0004798,30]
[357380545,1744027851403,-151.0,0.0004798,30]
[357380546,1744027851414,-151.0,0.0004798,30]
[357380547,1744027851424,-151.0,0.0004798,30]
[357380548,1744027851434,-151.0,0.0004798,30]
[357380549,1744027851443,-151.0,0.0004798,30]
[357380550,1744027851453,-151.0,0.0004798,30]
[357380551,1744027851463,-151.0,0.0004798,30]
[357380552,1744027851472,-151.0,0.0004798,30]
[357380553,1744027851482,-198.0,0.0004798,30]
[357380554,1744027851494,-151.0,0.0004798,14]
[357380555,1744027851503,-151.0,0.0004798,14]
[357380556,1744027851512,-151.0,0.0004798,14]
[357380557,1744027851522,-151.0,0.0004798,14]
[357380558,1744027851532,-151.0,0.0004798,14]
[357380559,1744027851541,-291.080996,0.0004798,14]
[357380560,1744027851550,-291.080996,0.0004798,14]
[357380561,1744027851559,-151.0,0.0004798,14]
[357380562,1744027851568,-202.573701,0.0004798,14]
[357380563,1744027851578,-595.661069,0.0004798,14]
[357380564,1744027851587,-151.0,0.0004798,14]
[357380565,1744027851596,-595.661069,0.0004798,14]
[357380566,1744027851606,-151.0,0.0004798,14]
[357380567,1744027851615,-151.0,0.0004798,14]
[357380568,1744027851627,-168.53729693,0.00047989,30]
[357380569,1744027851637,-1000.0,0.00047989,2]
[357380570,1744027851646,-151.0,0.0004799,14]
[357380571,1744027851656,-656.281935,0.0004799,14]
[357380572,1744027851668,-656.281935,0.0004799,14]
[357380573,1744027851677,-151.0,0.0004799,14]
[357380574,1744027851687,-2017.531787,0.0004799,14]
[357380575,1744027851696,-151.0,0.0004799,14]
[357380576,1744027851707,-151.0,0.0004799,14]
[357380577,1744027851722,-2017.531787,0.0004799,14]
[357380578,1744027851731,-151.0,0.0004799,14]
[357380579,1744027851740,-699.338446,0.0004799,14]
[357380580,1744027851750,-699.338446,0.0004799,14]
[357380581,1744027851760,-227.27599,0.0004799,14]
[357380582,1744027851770,-227.27599,0.0004799,14]
[357380583,1744027851780,-1000.0,0.00047999,2]
[357380584,1744027851790,-1000.0,0.00047999,2]
[357380585,1744027851799,-352.24654772,0.00047999,30]
[357380586,1744027851808,-405260.63951994,0.00048,2]
[357380587,1744027851818,-1452.14080451,0.00048,2]
[357380588,1744027851827,-81234.6253101,0.00048,120]
[357380589,1744027851837,-151.0,0.00048,14]
[357380590,1744027851846,-300.0,0.00048,120]
[357380591,1744027851856,-500.0,0.00048,120]
[357380592,1744027851866,-151.0,0.00048,14]
[357380593,1744027851876,-200.0,0.00048,120]
[357380594,1744027851885,-207.792591,0.00048,14]
[357380595,1744027851895,-151.0,0.00048,14]
[357380596,1744027851905,-151.0,0.00048,14]
[357380597,1744027851917,-151.0,0.00048,14]
[357380598,1744027851926,-151.0,0.00048,14]
[357380599,1744027851936,-151.0,0.00048,14]
[357380600,1744027851946,-151.0,0.00048,14]
[357380601,1744027851955,-151.0,0.00048,14]
[357380602,1744027851964,-151.0,0.00048,14]
[357380603,1744027851974,-151.0,0.00048,14]
[357380604,1744027851983,-211.885302,0.00048,14]
[357380605,1744027851992,-206.049697,0.00048,14]
[357380606,1744027852002,-206.049697,0.00048,14]
[357380607,1744027852011,-151.0,0.00048,14]
[357380608,1744027852020,-151.0,0.00048,14]
[357380609,1744027852029,-328.343424,0.00048,14]
[357380610,1744027852039,-328.343424,0.00048,14]
[357380611,1744027852048,-151.0,0.00048,14]
[357380612,1744027852057,-3371.760402,0.00048,14]
[357380613,1744027852067,-267.85703,0.00048,14]
[357380614,1744027852077,-3371.760402,0.00048,14]
[357380615,1744027852086,-151.0,0.00048,14]
[357380616,1744027852096,-287.459399,0.00048,14]
[357380617,1744027852105,-287.459399,0.00048,14]
[357380618,1744027852115,-151.0,0.00048,14]
[357380619,1744027852124,-151.0,0.00048,14]
[357380620,1744027852133,-151.0,0.00048,14]
[357380621,1744027852142,-151.0,0.00048,14]
[357380622,1744027852151,-371.531418,0.00048,14]
[357380623,1744027852162,-371.531418,0.00048,14]
[357380624,1744027852171,-969.737491,0.00048,14]
[357380625,1744027852180,-969.737491,0.00048,14]
[357380626,1744027852189,-151.0,0.00048,14]
[357380627,1744027852198,-486.289909,0.00048,14]
[357380628,1744027852207,-151.0,0.00048,14]
[357380629,1744027852217,-486.289909,0.00048,14]
[357380630,1744027852226,-151.0,0.00048,14]
[357380631,1744027852239,-151.0,0.00048,14]
[357380632,1744027852249,-151.0,0.00048,14]
[357380633,1744027852258,-151.0,0.00048,14]
[357380634,1744027852267,-151.0,0.00048,14]
[357380635,1744027852276,-151.0,0.00048,14]
[357380636,1744027852286,-151.0,0.00048,14]
[357380637,1744027852295,-151.0,0.00048,14]
[357380638,1744027852305,-170.553002,0.00048,14]
[357380639,1744027852319,-151.0,0.00048,14]
[357380640,1744027852328,-296.661804,0.00048,14]
[357380641,1744027852338,-291.080996,0.00048,14]
[357380642,1744027852348,-291.080996,0.00048,14]
[357380643,1744027852358,-1969.531871,0.00048,14]
[357380644,1744027852367,-1969.531871,0.00048,14]
[357380645,1744027852377,-151.0,0.00048,14]
[357380646,1744027852388,-151.0,0.00048,14]
[357380647,1744027852398,-151.0,0.00048,14]
[357380648,1744027852408,-305.195089,0.00048,14]
[357380649,1744027852418,-305.195089,0.00048,14]
[357380650,1744027852427,-151.0,0.00048,14]
[357380651,1744027852436,-272.725284,0.00048,14]
[357380652,1744027852446,-595.661069,0.00048,14]
[357380653,1744027852455,-151.0,0.00048,14]
[357380654,1744027852464,-272.725284,0.00048,14]
[357380655,1744027852473,-595.661069,0.00048,14]
[357380656,1744027852483,-270.203234,0.00048,14]
[357380657,1744027852492,-151.0,0.00048,14]
[357380658,1744027852502,-919.913595,0.00048,14]
[357380659,1744027852511,-151.0,0.00048,14]
[357380660,1744027852520,-228.621997,0.00048,14]
[357380661,1744027852530,-656.281935,0.00048,14]
[357380662,1744027852539,-656.281935,0.00048,14]
[357380663,1744027852548,-2091.177409,0.00048,14]
[357380664,1744027852558,-300.021205,0.00048,14]
[357380665,1744027852568,-2017.531787,0.00048,14]
[357380666,1744027852577,-2091.177409,0.00048,14]
[357380667,1744027852587,-151.0,0.00048,14]
[357380668,1744027852596,-151.0,0.00048,14]
[357380669,1744027852606,-2017.531787,0.00048,14]
[357380670,1744027852615,-151.0,0.00048,14]
[357380671,1744027852625,-699.338446,0.00048,14]
[357380672,1744027852634,-699.338446,0.00048,14]
[357380673,1744027852644,-227.27599,0.00048,14]
[357380674,1744027852847,-227.27599,0.00048,14]
[357380675,1744027852857,-1871.55,0.00048063,2]
[357380676,1744027852867,-1000.0,0.000482,7]
[357380677,1744027852877,-5951.0,0.00048292,7]
[357380678,1744027852887,-2190.21,0.000483,14]
[357380679,1744027852896,-236.03245057,0.00048331,24]
[357380680,1744027852906,-150.0,0.0004834,120]
[357380681,1744027852916,-852.39,0.000485,120]
[357380682,1744027852926,-3695.66191411,0.00048535,30]
[357380683,1744027852935,-561.84,0.00048543,2]
[357380684,1744027852944,-1000.0,0.000486,7]
[357380685,1744027852954,-1424.44813988,0.00048647,120]
[357380686,1744027852963,-173.21067649,0.00048699,120]
[357380687,1744027852973,-488.27271557,0.00048706,30]
[357380688,1744027852982,-505.95711111,0.00048731,33]
[357380689,1744027852992,-3383.219,0.00048748,2]
[357380690,1744027853002,-171.649,0.00048748,2]
[357380691,1744027853011,-852.0,0.00048748,2]
[357380692,1744027853020,-151.0,0.0004879,14]
[357380693,1744027853029,-323.479146,0.0004879,14]
[357380694,1744027853038,-323.479146,0.0004879,14]
[357380695,1744027853048,-151.0,0.0004879,14]
[357380696,1744027853057,-151.0,0.0004879,14]
[357380697,1744027853066,-151.0,0.0004879,14]
[357380698,1744027853075,-152.833037,0.0004879,14]
[357380699,1744027853084,-676.90327,0.0004879,14]
[357380700,1744027853093,-676.90327,0.0004879,14]
[357380701,1744027853102,-151.0,0.0004879,14]
[357380702,1744027853111,-424.389556,0.0004879,14]
[357380703,1744027853121,-424.389556,0.0004879,14]
[357380704,1744027853130,-220.789316,0.0004879,14]
[357380705,1744027853140,-220.789316,0.0004879,14]
[357380706,1744027853149,-151.0,0.0004879,14]
[357380707,1744027853159,-151.0,0.0004879,14]
[357380708,1744027853168,-151.0,0.0004879,14]
[357380709,1744027853177,-1000.0,0.00048799,2]
[357380710,1744027853187,-1000.0,0.00048799,2]
[357380711,1744027853197,-1000.0,0.00048799,2]
[357380712,1744027853207,-156.25597256,0.000488,120]
[357380713,1744027853216,-850.91969656,0.000488,30]
[357380714,1744027853226,-88228.82656036,0.000488,120]
[357380715,1744027853235,-843.12787257,0.000489,120]
[357380716,1744027853245,-5122.02039526,0.000489,2]
[357380717,1744027853254,-1001.43,0.00048941,120]
[357380718,1744027853263,-9583.08772509,0.00048981,15]
[357380719,1744027853272,-1000.0,0.00048981,2]
[357380720,1744027853281,-1000.0,0.00048981,2]
[357380721,1744027853291,-6958.0,0.00048986,120]
[357380722,1744027853300,-500.0,0.00048999,2]
[357380723,1744027853311,-1000.0,0.00048999,2]
[357380724,1744027853321,-1000.0,0.00048999,2]
[357380725,1744027853331,-1000.0,0.00048999,2]
[357380726,1744027853340,-1000.0,0.00048999,2]
[357380727,1744027853351,-1000.0,0.00048999,2]
[357380728,1744027853360,-2173.0,0.00049,120]
[357380729,1744027853369,-355917.72465096,0.00049,120]
[357380730,1744027853378,-1386.86722427,0.00049,120]
[357380731,1744027853388,-503.5932415,0.00049,120]
[357380732,1744027853397,-500.0,0.00049,120]
[357380733,1744027853407,-151.0,0.00049,14]
[357380734,1744027853416,-256.62598152,0.00049,14]
[357380735,1744027853425,-151.0,0.00049,14]
[357380736,1744027853435,-151.0,0.00049,14]
[357380737,1744027853444,-151.0,0.00049,14]
[357380738,1744027853454,-151.0,0.00049,14]
[357380739,1744027853463,-241.585306,0.00049,14]
[357380740,1744027853472,-241.585306,0.00049,14]
[357380741,1744027853482,-593.146408,0.00049,14]
[357380742,1744027853492,-292.108191,0.00049,14]
[357380743,1744027853501,-151.0,0.00049,14]
[357380744,1744027853510,-206.049697,0.00049,14]
[357380745,1744027853519,-206.049697,0.00049,14]
[357380746,1744027853529,-20250.54806563,0.00049,120]
[357380747,1744027853538,-465.712459,0.00049,14]
[357380748,1744027853548,-465.712459,0.00049,14]
[357380749,1744027853557,-151.0,0.00049,14]
[357380750,1744027853567,-3371.760402,0.00049,14]
[357380751,1744027853576,-3371.760402,0.00049,14]
[357380752,1744027853586,-287.459399,0.00049,14]
[357380753,1744027853596,-287.459399,0.00049,14]
[357380754,1744027853605,-151.0,0.00049,14]
[357380755,1744027853615,-151.0,0.00049,14]
[357380756,1744027853625,-151.0,0.00049,14]
[357380757,1744027853636,-151.0,0.00049,14]
[357380758,1744027853646,-969.737491,0.00049,14]
[357380759,1744027853655,-969.737491,0.00049,14]
[357380760,1744027853665,-151.0,0.00049,14]
[357380761,1744027853675,-486.289909,0.00049,14]
[357380762,1744027853684,-151.0,0.00049,14]
[357380763,1744027853694,-486.289909,0.00049,14]
[357380764,1744027853704,-151.0,0.00049,14]
[357380765,1744027853713,-151.0,0.00049,14]
[357380766,1744027853723,-151.0,0.00049,14]
[357380767,1744027853733,-151.0,0.00049,14]
[357380768,1744027853742,-151.0,0.00049,14]
[357380769,1744027853752,-151.0,0.00049,14]
[357380770,1744027853762,-151.0,0.00049,14]
[357380771,1744027853771,-151.0,0.00049,14]
[357380772,1744027853781,-151.0,0.00049,14]
[357380773,1744027853791,-291.080996,0.00049,14]
[357380774,1744027853801,-291.080996,0.00049,14]
[357380775,1744027853810,-1969.531871,0.00049,14]
[357380776,1744027853820,-1969.531871,0.00049,14]
[357380777,1744027853829,-151.0,0.00049,14]
[357380778,1744027853838,-151.0,0.00049,14]
[357380779,1744027853847,-151.0,0.00049,14]
[357380780,1744027853857,-305.195089,0.00049,14]
[357380781,1744027853866,-305.195089,0.00049,14]
[357380782,1744027853876,-179.88984,0.00049,14]
[357380783,1744027853885,-272.725284,0.00049,14]
[357380784,1744027853894,-595.661069,0.00049,14]
[357380785,1744027853904,-151.0,0.00049,14]
[357380786,1744027853914,-272.725284,0.00049,14]
[357380787,1744027853924,-595.661069,0.00049,14]
[357380788,1744027853934,-151.0,0.00049,14]
[357380789,1744027853943,-919.913595,0.00049,14]
[357380790,1744027853952,-151.0,0.00049,14]
[357380791,1744027853962,-656.281935,0.00049,14]
[357380792,1744027853971,-656.281935,0.00049,14]
[357380793,1744027853981,-2091.177409,0.00049,14]
[357380794,1744027853991,-2091.177409,0.00049,14]
[357380795,1744027854000,-2017.531787,0.00049,14]
[357380796,1744027854010,-151.0,0.00049,14]
[357380797,1744027854019,-151.0,0.00049,14]
[357380798,1744027854028,-2017.531787,0.00049,14]
[357380799,1744027854038,-151.0,0.00049,14]
[357380800,1744027854047,-699.338446,0.00049,14]
[357380801,1744027854057,-699.338446,0.00049,14]
[357380802,1744027854066,-227.27599,0.00049,14]
[357380803,1744027854076,-227.27599,0.00049,14]
[357380804,1744027854086,-304.52678704,0.00049225,120]
[357380805,1744027854095,-1000.0,0.00049314,2]
[357380806,1744027854105,-1000.0,0.00049314,2]
[357380807,1744027854115,-1000.0,0.00049314,2]
[357380808,1744027854124,-1000.0,0.00049314,2]
[357380809,1744027854133,-1000.0,0.00049314,2]
[357380810,1744027854143,-1000.0,0.00049314,2]
[357380811,1744027854153,-151.0,0.00049315,14]
[357380812,1744027854164,-323.479146,0.00049315,14]
[357380813,1744027854173,-323.479146,0.00049315,14]
[357380814,1744027854183,-676.90327,0.00049315,14]
[357380815,1744027854192,-676.90327,0.00049315,14]
[357380816,1744027854202,-151.0,0.00049315,14]
[357380817,1744027854211,-220.789316,0.00049315,14]
[357380818,1744027854220,-220.789316,0.00049315,14]
[357380819,1744027854230,-151.0,0.00049315,14]
[357380820,1744027854240,-151.0,0.00049315,14]
[357380821,1744027854250,-151.0,0.00049315,14]
[357380822,1744027854259,-151.0,0.00049315,14]
[357380823,1744027854269,-151.0,0.00049315,14]
[357380824,1744027854278,-151.0,0.00049315,14]
[357380825,1744027854287,-163.809555,0.00049315,14]
[357380826,1744027854296,-151.0,0.00049315,14]
[357380827,1744027854306,-151.0,0.00049315,14]
[357380828,1744027854318,-328.343424,0.00049315,14]
[357380829,1744027854327,-328.343424,0.00049315,14]
[357380830,1744027854337,-151.0,0.00049315,14]
[357380831,1744027854346,-371.531418,0.00049315,14]
[357380832,1744027854356,-371.531418,0.00049315,14]
[357380833,1744027854365,-1000.0,0.00049315,120]
[357380834,1744027854375,-500.0,0.00049315,120]
[357380835,1744027854384,-500.0,0.00049315,120]
[357380836,1744027854396,-392.8783549,0.00049315,120]
[357380837,1744027854406,-2062.50308117,0.00049315,120]
[357380838,1744027854416,-2062.50308117,0.00049315,120]
[357380839,1744027854425,-2062.50308117,0.00049315,120]
[357380840,1744027854435,-2062.50308117,0.00049315,120]
[357380841,1744027854444,-2062.50308117,0.00049315,120]
[357380842,1744027854453,-2062.50308117,0.00049315,120]
[357380843,1744027854462,-2062.50308117,0.00049315,120]
[357380844,1744027854471,-2062.50308117,0.00049315,120]
[357380845,1744027854481,-2062.50308117,0.00049315,120]
[357380846,1744027854490,-2062.50308117,0.00049315,120]
[357380847,1744027854499,-2062.50308117,0.00049315,120]
[357380848,1744027854508,-2062.50308117,0.00049315,120]
[357380849,1744027854517,-2062.50308117,0.00049315,120]
[357380850,1744027854527,-2062.50308117,0.00049315,120]
[357380851,1744027854536,-2062.50308117,0.00049315,120]
[357380852,1744027854545,-2062.50308117,0.00049315,120]
[357380853,1744027854556,-2062.50308117,0.00049315,120]
[357380854,1744027854565,-2062.50308117,0.00049315,120]
[357380855,1744027854575,-2062.50308117,0.00049315,120]
[357380856,1744027854584,-2062.50308117,0.00049315,120]
[357380857,1744027854593,-2062.50308117,0.00049315,120]
[357380858,1744027854603,-2062.50308117,0.00049315,120]
[357380859,1744027854613,-2062.50308117,0.00049315,120]
[357380860,1744027854622,-2062.50308117,0.00049315,120]
[357380861,1744027854631,-2062.50308117,0.00049315,120]
[357380862,1744027854640,-2062.50308117,0.00049315,120]
[357380863,1744027854649,-2062.50308117,0.00049315,120]
[357380864,1744027854659,-2062.50308117,0.00049315,120]
[357380865,1744027854668,-2062.50308117,0.00049315,120]
[357380866,1744027854678,-2062.50308117,0.00049315,120]
[357380867,1744027854686,-2062.50308117,0.00049315,120]
[357380868,1744027854696,-2062.50308117,0.00049315,120]
[357380869,1744027854705,-2062.50308117,0.00049315,120]
[357380870,1744027854714,-2062.50308117,0.00049315,120]
[357380871,1744027854723,-2062.50308117,0.00049315,120]
[357380872,1744027854733,-2062.50308117,0.00049315,120]
[357380873,1744027854743,-2062.50308117,0.00049315,120]
[357380874,1744027854752,-2062.50308117,0.00049315,120]
[357380875,1744027854762,-2062.50308117,0.00049315,120]
[357380876,1744027854771,-2062.50308117,0.00049315,120]
[357380877,1744027854782,-2062.50308117,0.00049315,120]
[357380878,1744027854791,-2062.50308117,0.00049315,120]
[357380879,1744027854800,-2062.50308117,0.00049315,120]
[357380880,1744027854810,-2062.50308117,0.00049315,120]
[357380881,1744027854819,-2062.50308117,0.00049315,120]
[357380882,1744027854829,-2062.50308117,0.00049315,120]
[357380883,1744027854838,-2062.50308117,0.00049315,120]
[357380884,1744027854848,-2062.50308117,0.00049315,120]
[357380885,1744027854857,-2062.50308117,0.00049315,120]
[357380886,1744027854866,-2062.50308117,0.00049315,120]
[357380887,1744027854875,-2062.50308117,0.00049315,120]
[357380888,1744027854885,-2062.50308117,0.00049315,120]
[357380889,1744027854894,-2062.50308117,0.00049315,120]
[357380890,1744027854903,-416.210415,0.00049315,120]
[357380891,1744027854912,-416.210415,0.00049315,120]
[357380892,1744027854921,-1000.0,0.00049342,120]
[357380893,1744027854930,-249.50848973,0.00049369,120]
[357380894,1744027854941,-300.0,0.00049408,120]
[357380895,1744027854950,-1000.0,0.00049445,2]
[357380896,1744027854959,-1000.0,0.00049445,2]
[357380897,1744027854968,-1000.0,0.00049445,2]
[357380898,1744027854978,-151.0,0.00049446,120]
[357380899,1744027854987,-151.0,0.00049446,120]
[357380900,1744027854996,-151.0,0.00049446,120]
[357380901,1744027855006,-424.389556,0.00049446,120]
[357380902,1744027855015,-424.389556,0.00049446,120]
[357380903,1744027855024,-151.0,0.00049446,120]
[357380904,1744027855033,-151.0,0.00049446,120]
[357380905,1744027855042,-488.27271557,0.00049467,30]
[357380906,1744027855051,-150.0,0.00049596,7]
[357380907,1744027855061,-2190.21,0.000496,14]
[357380908,1744027855070,-150.0,0.0004971,120]
[357380909,1744027855080,-1000.0,0.00049757,120]
[357380910,1744027855089,-1000.0,0.000498,120]
[357380911,1744027855098,-2000.0,0.000499,2]
[357380912,1744027855107,-1000.0,0.000499,7]
[357380913,1744027855116,-1000.0,0.00049998,2]
[357380914,1744027855126,-1000.0,0.00049999,2]
[357380915,1744027855135,-1000.0,0.00049999,2]
[357380916,1744027855145,-1000.0,0.00049999,2]
[357380917,1744027855154,-1000.0,0.00049999,2]
[357380918,1744027855163,-1000.0,0.00049999,2]
[357380919,1744027855173,-50000.0,0.0005,50]
[357380920,1744027855182,-1000.0,0.0005,120]
[357380921,1744027855191,-2000.0,0.0005,120]
[357380922,1744027855201,-300.0,0.0005,120]
[357380923,1744027855210,-250.0,0.0005,120]
[357380924,1744027855219,-300.0,0.0005,2]
[357380925,1744027855229,-151.0,0.0005,120]
[357380926,1744027855238,-233.092811,0.0005,120]
[357380927,1744027855247,-1000.0,0.00050035,2]
[357380928,1744027855256,-151.0,0.00050036,120]
[357380929,1744027855265,-291.080996,0.00050036,120]
[357380930,1744027855274,-291.080996,0.00050036,120]
[357380931,1744027855284,-151.0,0.00050036,120]
[357380932,1744027855293,-305.195089,0.00050036,120]
[357380933,1744027855303,-305.195089,0.00050036,120]
[357380934,1744027855314,-272.725284,0.00050036,120]
[357380935,1744027855324,-151.0,0.00050036,120]
[357380936,1744027855333,-272.725284,0.00050036,120]
[357380937,1744027855344,-151.0,0.00050036,120]
[357380938,1744027855354,-151.0,0.00050036,120]
[357380939,1744027855363,-656.281935,0.00050036,120]
[357380940,1744027855372,-656.281935,0.00050036,120]
[357380941,1744027855382,-2017.531787,0.00050036,120]
[357380942,1744027855392,-151.0,0.00050036,120]
[357380943,1744027855403,-151.0,0.00050036,120]
[357380944,1744027855412,-2017.531787,0.00050036,120]
[357380945,1744027855421,-699.338446,0.00050036,120]
[357380946,1744027855430,-699.338446,0.00050036,120]
[357380947,1744027855439,-227.27599,0.00050036,120]
[357380948,1744027855448,-227.27599,0.00050036,120]
[357380949,1744027855458,-173.73,0.00050036,2]
[357380950,1744027855467,-488.27271557,0.00050228,30]
[357380951,1744027855476,-443.76,0.00050265,120]
[357380952,1744027855487,-151.0,0.00050276,120]
[357380953,1744027855497,-151.0,0.00050276,120]
[357380954,1744027855506,-1871.55,0.00050327,2]
[357380955,1744027855515,-150.0,0.00050437,7]
[357380956,1744027855524,-155.19,0.0005045,2]
[357380957,1744027855534,-151.0,0.000505,120]
[357380958,1744027855543,-300.0,0.000505,2]
[357380959,1744027855553,-1000.0,0.00050558,2]
[357380960,1744027855562,-1000.0,0.00050558,2]
[357380961,1744027855572,-338.303343,0.00050559,120]
[357380962,1744027855581,-338.303343,0.00050559,120]
[357380963,1744027855590,-151.0,0.00050559,120]
[357380964,1744027855599,-151.0,0.00050559,5]
[357380965,1744027855609,-169.596552,0.00050559,120]
[357380966,1744027855618,-169.596552,0.00050559,120]
[357380967,1744027855627,-359.90123,0.00050559,120]
[357380968,1744027855637,-359.90123,0.00050559,120]
[357380969,1744027855646,-1000.0,0.00050604,2]
[357380970,1744027855656,-9583.08772509,0.00050605,15]
[357380971,1744027855667,-919.913595,0.00050605,120]
[357380972,1744027855677,-2091.177409,0.00050605,120]
[357380973,1744027855688,-2091.177409,0.00050605,120]
[357380974,1744027855697,-150.0,0.00050613,7]
[357380975,1744027855707,-218.553381,0.00050699,120]
[357380976,1744027855717,-1000.0,0.00050699,2]
[357380977,1744027855726,-1000.0,0.00050699,2]
[357380978,1744027855735,-2190.21,0.000507,14]
[357380979,1744027855744,-287.459399,0.000507,120]
[357380980,1744027855753,-287.459399,0.000507,120]
[357380981,1744027855762,-151.0,0.000507,120]
[357380982,1744027855771,-969.737491,0.000507,120]
[357380983,1744027855781,-969.737491,0.000507,120]
[357380984,1744027855790,-151.0,0.000507,120]
[357380985,1744027855799,-151.0,0.000507,120]
[357380986,1744027855808,-151.0,0.000507,120]
[357380987,1744027855818,-151.0,0.000507,120]
[357380988,1744027855827,-151.0,0.000507,120]
[357380989,1744027855836,-151.0,0.000507,120]
[357380990,1744027855845,-151.0,0.000507,120]
[357380991,1744027855855,-1969.531871,0.000507,120]
[357380992,1744027855864,-1969.531871,0.000507,120]
[357380993,1744027855874,-151.0,0.000507,120]
[357380994,1744027855883,-151.0,0.000507,120]
[357380995,1744027855893,-2855.31,0.000507,48]
[357380996,1744027855903,-2855.31,0.000507,48]
[357380997,1744027855915,-2855.31,0.000507,48]
[357380998,1744027855924,-2855.31,0.000507,48]